{"text_format":"1","workbook":"xlsx","n_sheets":2,"sheets":["Pasiūlymas","Subtiekėjai"],"not_rendered":{"charts":0,"images":0,"macros":1,"external_links":0,"defined_names":1,"comments":0,"pivot_tables":0},"unopened":[],"bounds":{"document_bytes":16777216,"sheet_cells":100000,"rows_first":2000,"rows_last":500,"rows_between":2000,"halvings":0,"cell_chars":16384,"cell_head_chars":4096},"cells_cut":0,"cells_raw":0,"read":"whole","date_system":"1900"}

{"sheet":"Pasiūlymas","index":0,"n_rows":125,"n_cols":13,"rows_kept":125,"cut":false,"hidden":false,"merged":[[119,1,119,6],[88,1,88,6],[94,1,94,6],[100,1,100,6],[106,1,106,6],[113,1,113,6],[58,1,58,6],[64,1,64,6],[70,1,70,6],[76,1,76,6],[82,1,82,6],[28,1,28,6],[34,1,34,6],[40,1,40,6],[46,1,46,6],[52,1,52,6],[9,0,9,1],[9,2,9,4],[10,0,10,1],[10,2,10,4],[11,0,11,1],[11,2,11,4],[12,0,12,1],[12,2,12,4],[13,0,13,1],[13,2,13,4],[14,0,14,1],[14,2,14,4],[15,0,15,1],[15,2,15,4],[16,0,16,1],[16,2,16,4],[17,0,17,1],[17,2,17,4],[18,0,18,1],[18,2,18,4],[19,0,19,1],[19,2,19,4],[22,0,22,5]]}
["Perkančioji organizacija, kuriai teikiamas pasiūlymas:",null,"VŠĮ Kauno klinikinė ligoninė"]
[]
[null,"PASIŪLYMAS"]
[null,"Vakcinos"]
[]
["Data:","2019-03-04"]
["Nr.:"]
["Vieta:","Vilnius"]
[]
["Tiekėjo pavadinimas /Jeigu dalyvauja ūkio subjektų grupė, surašomi visi dalyvių pavadinimai/",null,"UAB Armila"]
["Įmonės kodas /Jeigu dalyvauja ūkio subjektų grupė, surašomi visi dalyvių kodai/",null,123813957]
["PVM mokėtojo kodas /Jeigu dalyvauja ūkio subjektų grupė, surašomi visi dalyvių kodai/",null,"LT238139515"]
["Banko pavadinimas, banko kodas, sąskaitos Nr.",null,"AB Luminor bank LT454010042400030802"]
["Tiekėjo adresas /Jeigu dalyvauja ūkio subjektų grupė, surašomi visi dalyvių adresai/",null,"Molėtų pl. 75, Vilnius"]
["Telefono numeris",null,"5 8 2197077"]
["Fakso numeris",null,"8 5 2737381"]
["El. pašto adresas",null,"info@armila.com"]
["Asmens, pasirašiusio pasiūlymą saugiu elektroniniu parašu, vardas, pavardė, pareigos ",null,"Evaldas Anilionis"]
["Asmens, įgalioto pasirašyti sutartį, vardas, pavardė, pareigos",null,"direktorius Remigijus Mielinis"]
[]
[]
[]
["1. Šiuo pasiūlymu pažymime, kad sutinkame su visomis pirkimo sąlygomis, nustatytomis:\n1) pirkimo skelbime, paskelbtame Viešųjų pirkimų įstatymo nustatyta tvarka;\n2) pirkimo sąlygose ir kituose pirkimo dokumentuose (jų paaiškinimuose, papildymuose).\n"]
[]
["Siūlomas pirkimo objektas visiškai atitinka pirkimo sąlygose nustatytus reikalavimus ir jo kaina yra:"]
[]
[]
["Nr.","Pavadinimas","Maksimalus kiekis","Mato vienetas","Vieneto įkainis be PVM","Suma be PVM","Siūlomos prekės pavadinimas ir gamintojas",null,null,null,"","",""]
["1.","Inaktyvuota hepatito A vakcina 1,0 ml"]
["1.1.","Inaktyvuota hepatito A vakcina 1,0 ml",70,"vnt.",26.8,{"$f":"E30*70","v":1876},"HAVRIX 1440 ELISA V/ml injekcinė suspensija užpild.šv. ir adata N1 (Glaxo UK-Wellcome)",null,null,""]
[null,null,null,null,"Suma be PVM",{"$f":"F30","v":1876}]
[null,null,null,null,"PVM suma",{"$f":"F31*0.05","v":93.800000000000011}]
[null,null,null,null,"Suma su PVM",{"$f":"F31+F32","v":1969.8},null,null,null,""]
[null,null,null,null,null,null,null,null,null,null,null,""]
["2.","Inaktyvuota, adsorbuota hepatito A vakcina (paaugliams ir suaugusiems) 0,5 ml",null,null,null,null,null,null,null,null,null,""]
["2.1.","Inaktyvuota, adsorbuota hepatito A vakcina (paaugliams ir suaugusiems) 0,5 ml",120,"vnt.",20.6,{"$f":"E36*120","v":2472},"HAVRIX 720 ELISA V/0,5 ml injekcinė suspensija užpild.šv. ir adata N1 (Glaxo UK-Wellcome)",null,null,"","",""]
[null,null,null,null,"Suma be PVM",{"$f":"F36","v":2472},null,null,null,"","",""]
[null,null,null,null,"PVM suma",{"$f":"F37*0.05","v":123.60000000000001},null,null,null,"","",""]
[null,null,null,null,"Suma su PVM",{"$f":"F37+F38","v":2595.6}]
[]
["3.","Inaktyvuota hepatito A vakcina (vaikams) 0,5 ml",null,null,null,null,null,null,null,""]
["3.1.","Inaktyvuota hepatito A vakcina (vaikams) 0,5 ml",25,"vnt."]
[null,null,null,null,"Suma be PVM",null,null,null,null,null,null,""]
[null,null,null,null,"PVM suma",null,null,null,null,"",null,""]
[null,null,null,null,"Suma su PVM",null,null,null,null,null,null,""]
[]
["4.","Atentuota geltonojo drugio viruso vakcina 0,5ml",null,null,null,null,null,null,null,"","",""]
["4.1.","Atentuota geltonojo drugio viruso vakcina 0,5ml",140,"vnt.",null,null,null,null,null,"","",""]
[null,null,null,null,"Suma be PVM",null,null,null,null,"","",""]
[null,null,null,null,"PVM suma"]
[null,null,null,null,"Suma su PVM"]
[]
["5.","Vidurių šiltinės polisacharidinė vakcina 0,5 ml *"]
["5.1."," Vidurių šiltinės polisacharidinė vakcina 0,5 ml *",250,"vnt."]
[null,null,null,null,"Suma be PVM"]
[null,null,null,null,"PVM suma"]
[null,null,null,null,"Suma su PVM"]
[]
["6.","Meningokokų A, C, W - 135, Y konjuguota vakcina"]
["6.1.","Meningokokų A, C, W - 135, Y konjuguota vakcina",20,"vnt.",42.8,{"$f":"E60*20","v":856},"NIMENRIX 0,5 ml milteliai ir tirpiklis injekciniam tirpalui užpildytam švirkšte N1 (PFIZER H.C.P. Corporation)"]
[null,null,null,null,"Suma be PVM",{"$f":"F60","v":856}]
[null,null,null,null,"PVM suma",{"$f":"F61*0.05","v":42.800000000000004}]
[null,null,null,null,"Suma su PVM",{"$f":"F61+F62","v":898.8}]
[]
["7.","Meningokokų B grupės rekombinantinė - adsorbuota vakcina, skirta 10 metų ir vyresniems 0,5 ml"]
["7.1.","Meningokokų B grupės rekombinantinė - adsorbuota vakcina, skirta 10 metų ir vyresniems 0,5 ml",100,"vnt.",75.319999999999993,{"$f":"E66*100","v":7531.9999999999991},"BEXSERO injekcinė suspensija užpild.šv. ir adata 0,5 ml N1 (Glaxo UK-Wellcome)"]
[null,null,null,null,"Suma be PVM",{"$f":"F66","v":7531.9999999999991}]
[null,null,null,null,"PVM suma",{"$f":"F67*0.05","v":376.59999999999997}]
[null,null,null,null,"Suma su PVM",{"$f":"F67+F68","v":7908.5999999999995}]
[]
["8.","Devynvalentė rekombinantinė žmogaus papilomos viruso (ŽVP) vakcina"]
["8.1.","Devynvalentė rekombinantinė žmogaus papilomos viruso (ŽVP) vakcina",50,"vnt.",103.6,{"$f":"E72*50","v":5180},"GARDASIL 9 injekcinė suspensija užpild.šv. ir adata 0,5 ml N1 (SANOFI PASTEUR MSD SNC)"]
[null,null,null,null,"Suma be PVM",{"$f":"F72","v":5180}]
[null,null,null,null,"PVM suma",{"$f":"F73*0.05","v":259}]
[null,null,null,null,"Suma su PVM",{"$f":"F73+F74","v":5439}]
[]
["9.","Vakcina nuo B tipo Haemofilus Influenzae infekcijos  0,5 ml"]
["9.1.","Vakcina nuo B tipo Haemofilus Influenzae infekcijos  0,5 ml",20,"vnt.",15.44,{"$f":"E78*20","v":308.8},"ENGERIX-B 20 µg/ml injekcinė suspensija švirkšte be adatos N1 (Glaxo UK-Wellcome)"]
[null,null,null,null,"Suma be PVM",{"$f":"F78","v":308.8}]
[null,null,null,null,"PVM suma",{"$f":"F79*0.05","v":15.440000000000001}]
[null,null,null,null,"Suma su PVM",{"$f":"F79+F80","v":324.24}]
[]
["10.","Kombinuota tymų-parotito-raudoniukės vakcina 0,5ml"]
["10.1.","Kombinuota tymų-parotito-raudoniukės vakcina 0,5ml",20,"vnt."]
[null,null,null,null,"Suma be PVM"]
[null,null,null,null,"PVM suma"]
[null,null,null,null,"Suma su PVM"]
[]
["11.","Vakcina nuo pasiutligės, pagaminta naudojant ląstelių kultūrą (žmonėms) 0,5 ml"]
["11.1.","Vakcina nuo pasiutligės, pagaminta naudojant ląstelių kultūrą (žmonėms) 0,5 ml",20,"vnt."]
[null,null,null,null,"Suma be PVM"]
[null,null,null,null,"PVM suma"]
[null,null,null,null,"Suma su PVM"]
[]
["12.","Adsorbuota vakcina nuo difterijos, stabligės ir inaktyvinta poliomielito vakcina 0,5 ml"]
["12.1.","Adsorbuota vakcina nuo difterijos, stabligės ir inaktyvinta poliomielito vakcina 0,5 ml",330,"vnt."]
[null,null,null,null,"Suma be PVM"]
[null,null,null,null,"PVM suma"]
[null,null,null,null,"Suma su PVM"]
[]
["13.","Gripo vakcina (keturvalentė) 0,5 ml *"]
["13.1.","Gripo vakcina (keturvalentė) 0,5 ml *",70,"vnt."]
[null,null,null,null,"Suma be PVM"]
[null,null,null,null,"PVM suma"]
[null,null,null,null,"Suma su PVM"]
[]
["14.","Gripo vakcina (keturvalentė) 0,5 ml *"]
["14.1.","Gripo vakcina (keturvalentė) 0,5 ml *",30,"vnt."]
["14.1.1.","Siūlyti skirtingo gamintojo, nei pasiūlyta 15 šio pirkimo dalyje"]
[null,null,null,null,"Suma be PVM"]
[null,null,null,null,"PVM suma"]
[null,null,null,null,"Suma su PVM"]
[]
["15.","Adsorbuota vakcina nuo difterijos, stabligės, kokliušo (neląstelinė, komponentinė) 0,5 ml Vidurių šiltinės polisacharidinė vakcina 0,5 ml *"]
["15.1.","Adsorbuota vakcina nuo difterijos, stabligės, kokliušo (neląstelinė, komponentinė) 0,5 ml Vidurių šiltinės polisacharidinė vakcina 0,5 ml *",30,"vnt."]
[null,null,null,null,"Suma be PVM"]
[null,null,null,null,"PVM suma"]
[null,null,null,null,"Suma su PVM"]
[]
["16.","Adsorbuota vakcina nuo difterijos, stabligės, kokliušo (neląstelinė, komponentinė) 0,5 ml Vidurių šiltinės polisacharidinė vakcina 0,5 ml *"]
["16.1.","Adsorbuota vakcina nuo difterijos, stabligės, kokliušo (neląstelinė, komponentinė) 0,5 ml Vidurių šiltinės polisacharidinė vakcina 0,5 ml *",10,"vnt."]
["16.1.1.","Siūlyti skirtingo gamintojo, nei pasiūlyta 17 šio pirkimo dalyje"]
[null,null,null,null,"Suma be PVM"]
[null,null,null,null,"PVM suma"]
[null,null,null,null,"Suma su PVM"]

{"sheet":"Subtiekėjai","index":1,"n_rows":100,"n_cols":9,"rows_kept":100,"cut":false,"hidden":false,"merged":[[4,0,4,1],[4,2,4,4],[4,5,4,7],[4,8,4,9],[1,0,1,9],[3,0,3,1],[3,2,3,4],[3,5,3,7],[3,8,3,9],[5,0,5,1],[5,2,5,4],[5,5,5,7],[5,8,5,9],[6,0,6,1],[6,2,6,4],[6,5,6,7],[6,8,6,9],[17,1,17,6],[17,7,17,9],[7,0,7,1],[7,2,7,4],[7,5,7,7],[7,8,7,9],[8,0,8,1],[8,2,8,4],[8,5,8,7],[8,8,8,9],[10,0,10,9],[12,0,12,9],[14,0,14,9],[16,1,16,6],[16,7,16,9],[18,1,18,6],[18,7,18,9],[19,1,19,6],[19,7,19,9],[20,1,20,6],[20,7,20,9],[38,0,38,9],[21,1,21,6],[21,7,21,9],[24,0,24,3],[24,4,24,9],[25,0,25,9],[26,0,26,9],[28,0,28,9],[32,0,32,3],[32,4,32,9],[35,0,35,3],[35,4,35,9]]}
[]
["Sutarties vykdymui numatome pasitelkti šiuos subtiekėjus / subteikėjus / subrangovus (įrašyti visus subtiekėjus / subteikėjus / subrangovus nepriklausomai nuo tiekiamų prekių/ teikiamų paslaugų/ atliekamų darbų vertės):"]
[]
["Subtiekėjo / subteikėjo / subrangovo (-ų) pavadinimas (-ai)",null,"Adresas",null,null,"Trumpas aprašymas",null,null,"Procentas nuo pasiūlymo kainos be PVM"]
[]
[]
[]
[]
[]
[]
["Jeigu pirkimo dokumentų 18 punkte numatytas subtiekimo / subteikimo / subrangos apribojimas:\nMes patvirtiname, kad subtiekėjams / subteikėjams / subrangovams (tiekėjams, kuriuos pasamdysime dalies sutartyje numatytų prekių tiekimui /paslaugų teikimui / darbų atlikimui) perduodamų tiekti prekių / teikti paslaugų/ atlikti darbų dalis neviršys       proc. pasiūlymo kainos be PVM."]
[]
["Mes patvirtiname, kad esame / nesame (nereikalingą išbraukti) laikomi asocijuotais (susijusiais) su Perkančiąja organizacija pagal Lietuvos Respublikoje galiojančių teisės aktų (Lietuvos Respublikos pelno mokesčio, Lietuvos Respublikos pridėtinės vertės mokesčio ir Lietuvos Respublikos gyventojų pajamų mokesčio įstatymų) nuostatas. "]
[]
["Kartu su pasiūlymu pateikiami šie dokumentai:"]
[]
["Eil.Nr.","\"Pateiktų skaitmeninių dokumentų (ar jų kopijų) pavadinimas\n(pasiūlymą sudarančių konfidencialių dokumentų pavadinimai pažymėti prierašu KONFIDENCIALU)\"",null,null,null,null,null,"Prisegtos bylos (failo) pavadinimas "]
[]
[]
[]
[]
[]
[]
[]
["Pasiūlymo galiojimo užtikrinimui pateikiame :"]
[]
["(Nurodyti užtikrinimo būdą, dydį, dokumentus)"]
[]
["\nPasiūlymas galioja iki termino, nustatyto pirkimo dokumentuose.\n\nPasiūlymo neatskiriama dalis yra (rašoma, jeigu buvo reikalauta prie pasiūlymo pridėti atitinkamą dokumentą)"]
[]
[]
[]
["Tiekėjo arba jo įgalioto asmens pareigų pavadinimas"]
[]
[]
["Pasirašančio asmens vardas ir pavardė"]
[]
[]
["**kadangi visas pasiūlymas pasirašomas saugiu elektroniniu parašu, šio dokumento atskirai pasirašyti neprivaloma."]
[]
[]
[]
[]
[]
[]
[]
[]
[]
[]
[]
[]
[]
[]
[]
[]
[]
[]
[]
[]
[]
[]
[]
[]
[]
[]
[]
[]
[]
[]
[]
[]
[]
[]
[]
[]
[]
[]
[]
[]
[]
[]
[]
[]
[]
[]
[]
[]
[]
[]
[]
[]
[]
[]
[]
[]
[]
[]
[]
[]
["1616-6 2019-01-18 10:34:43"]